fUSD/lending_fUSD_20240722
["ID","MTS","AMOUNT","RATE_DAILY","PERIOD"]
[332869609,1721606765491,621.19,8.785e-05,2]
[332869631,1721607031535,-817.0,9.715e-05,2]
[332869632,1721607031544,-56.46363093,0.00010634,2]
[332869633,1721607031610,-193.53636907,0.00010634,2]
[332869634,1721607031619,-155.62824908,0.00010648,2]
[332869635,1721607031630,-8.53635587,0.00010648,2]
[332869636,1721607031640,-2107.89985615,0.00010648,2]
[332869637,1721607031649,-1842.22,0.000107,2]
[332869638,1721607031659,-300.0,0.00010726,2]
[332869639,1721607031668,-204.19,0.00010727,2]
[332869640,1721607031678,-688.15378798,0.00010727,2]
[332869641,1721607031701,-2483.00621202,0.00010727,2]
[332869642,1721607031710,-995.09,0.00010771,2]
[332869643,1721607031719,-160.45,0.00010771,2]
[332869644,1721607031728,-2799.49,0.00010854,2]
[332869645,1721607031738,-200.0,0.0001091,2]
[332869646,1721607031747,-250.0,0.00011018,2]
[332869647,1721607031756,-621.19,0.00011049,2]
[332869648,1721607031768,-3399.71436587,0.00011105,2]
[332869649,1721607031777,-731.07366849,0.00011105,2]
[332869650,1721607031821,-406.40573609,0.00011105,2]
[332869651,1721607031830,-155.0,0.00011105,2]
[332869652,1721607031840,-266.95796456,0.00011105,2]
[332869653,1721607031849,-692.42718412,0.00011105,2]
[332869654,1721607031858,-4009.72634641,0.00011105,2]
[332869655,1721607031885,-298.62086198,0.00011105,2]
[332869656,1721607031896,-1523.71310698,0.00011105,2]
[332869657,1721607031906,-1.62010169,0.00011268,2]
[332869658,1721607031936,-148.37989831,0.00011268,2]
[332869659,1721607031945,-267.60602858,0.00011269,2]
[332869660,1721607031969,-232.38397142,0.00011269,2]
[332869661,1721607031979,-620.76,0.00011269,2]
[332869662,1721607031989,-492.92587255,0.00011322,2]
[332869663,1721607031999,-895.0,0.00011431,2]
[332869664,1721607032009,-329.16417416,0.00011525,2]
[332869665,1721607032021,-722.49604628,0.00011525,2]
[332869666,1721607032031,-1000.0,0.00011527,2]
[332869667,1721607032041,-271.64,0.00011665,2]
[332869668,1721607032051,-150.0,0.00011685,2]
[332869669,1721607032061,-150.0,0.00011685,2]
[332869670,1721607032072,-529.74,0.00011685,2]
[332869671,1721607032082,-355.69,0.00011685,2]
[332869672,1721607032091,-150.0,0.00011685,2]
[332869673,1721607032101,-150.0,0.00011685,2]
[332869674,1721607032111,-1059.48,0.00011685,2]
[332869675,1721607032121,-150.0,0.00011685,2]
[332869676,1721607032131,-150.0,0.00011685,2]
[332869677,1721607032141,-150.0,0.00011685,2]
[332869678,1721607032151,-529.74,0.00011685,2]
[332869679,1721607032160,-165.25,0.00011685,2]
[332869680,1721607032169,-150.0,0.00011685,2]
[332869681,1721607032178,-150.0,0.00011685,2]
[332869682,1721607032187,-535.34,0.00011685,2]
[332869683,1721607032196,-150.0,0.00011685,2]
[332869684,1721607032206,-150.0,0.00011685,2]
[332869685,1721607032215,-150.0,0.00011685,2]
[332869686,1721607032225,-165.25,0.00011685,2]
[332869687,1721607032235,-150.0,0.00011685,2]
[332869688,1721607032244,-529.74,0.00011685,2]
[332869689,1721607032253,-150.0,0.00011685,2]
[332869690,1721607032264,-165.25,0.00011685,2]
[332869691,1721607032274,-150.0,0.00011685,2]
[332869692,1721607032283,-150.0,0.00011685,2]
[332869693,1721607032292,-150.0,0.00011685,2]
[332869694,1721607032301,-165.25,0.00011685,2]
[332869695,1721607032310,-529.74,0.00011685,2]
[332869696,1721607032319,-150.0,0.00011685,2]
[332869697,1721607032328,-108.70306926,0.00011685,2]
[332869698,1721607032340,-425.31693074,0.00011685,2]
[332869699,1721607032350,-528.86,0.00011685,2]
[332869700,1721607032359,-355.69,0.000117,2]
[332869701,1721607032368,-150.0,0.000117,2]
[332869702,1721607032377,-1743.15196,0.0001178,2]
[332869703,1721607032386,-150.0,0.00011785,2]
[332869704,1721607032395,-420.0,0.0001179,2]
[332869705,1721607032404,-1000.0,0.000118,2]
[332869706,1721607032418,-907.54805462,0.000118,2]
[332869707,1721607032427,-209.63212771,0.000118,2]
[332869708,1721607032437,-500.0,0.00011805,2]
[332869709,1721607032447,-285.74921913,0.0001185,2]
[332869710,1721607032457,-356.93341906,0.0001185,2]
[332869711,1721607032466,-528.18990579,0.00011896,2]
[332869712,1721607032475,-1771.0513258,0.00011899,2]
[332869713,1721607032486,-5840.61718032,0.000119,2]
[332869714,1721607032497,-267650.29444186,0.000119,2]
[332869715,1721607032531,-447.64794776,0.000119,2]
[332869736,1721607037519,-885.5256629,0.00011899,2]
[332869738,1721607037529,-18078.80181185,0.000119,2]
[332869742,1721607037571,-3414.99354584,0.000119,2]
[332869743,1721607037585,-618.95206319,0.000119,2]
[332869744,1721607037596,-446.9083603,0.000119,2]
[332869745,1721607037606,-10623.3,0.000119,2]
[332869746,1721607037617,-743.53478048,0.000119,2]
[332869747,1721607037628,-36254.79713045,0.000119,2]
[332869748,1721607037638,-1000.00000014,0.000119,2]
[332869749,1721607037650,-1085.8962,0.000119,2]
[332869750,1721607037677,-500.0,0.000119,2]
[332869751,1721607037692,-1936.04088029,0.000119,2]
[332869752,1721607037704,-2285.26223774,0.000119,2]
[332869753,1721607037735,-4165.62792523,0.000119,2]
[332869754,1721607037746,-1590.1,0.000119,2]
[332869755,1721607037790,-2975.5,0.000119,2]
[332869756,1721607037801,-1611.42017081,0.000119,2]
[332869909,1721607039534,-387.06005266,0.00011897,2]
[332869911,1721607039546,-375.59434409,0.00011897,2]
[332869916,1721607039589,-264.23321739,0.00011897,2]
[332869918,1721607039599,-26719.76842656,0.000119,2]
[332869924,1721607039644,-4780.76030792,0.000119,2]
[332870052,1721607041058,-303.13610562,0.00011899,2]
[332870055,1721607041071,-139.62672583,0.00011899,2]
[332870056,1721607041080,-2441.44599855,0.000119,2]
[332870059,1721607041091,-506.67588567,0.000119,2]
[332870061,1721607041102,-517.0,0.000119,2]
[332870063,1721607041113,-8263.86627251,0.000119,2]
[332870065,1721607041124,-4609.19369259,0.000119,2]
[332870070,1721607041166,-571.61863789,0.000119,2]
[332870072,1721607041177,-275838.83320447,0.000119,2]
[332870077,1721607041219,-169275.3581515,0.000119,2]
[332870084,1721607041275,-3304.77660869,0.000119,2]
[332870121,1721607041644,-455.28848318,0.000119,2]
[332870123,1721607041655,-9643.92039372,0.000119,2]
[332870125,1721607041666,-473.28023069,0.000119,2]
[332870127,1721607041677,-1917.30000001,0.000119,2]
[332870233,1721607042702,-772.1299993,0.000119,2]
[332870236,1721607042714,-716.30002,0.000119,2]
[332870241,1721607042757,-2340.0,0.000119,2]
[332870243,1721607042770,-520.01920107,0.000119,2]
[332870248,1721607042815,-1211.00213444,0.000119,2]
[332870255,1721607042919,-97609.90762759,0.000119,2]
[332870260,1721607042974,-499.44131326,0.000119,2]
[332870267,1721607043028,-412.1753019,0.000119,2]
[332870739,1721607047665,-722.49604628,0.00011525,2]
[332870740,1721607047680,-221.38141572,0.00011899,2]
[332870741,1721607047693,-6378.3188935,0.000119,2]
[332870742,1721607047711,-398920.76504178,0.000119,2]
[332870743,1721607047729,-268.25,0.000119,2]
[332870744,1721607047746,-34170.49,0.000119,2]
[332870745,1721607047764,-5273.45621321,0.000119,2]
[332870746,1721607047781,-684133.88740629,0.000119,2]
[332870747,1721607047799,-773.40589846,0.000119,2]
[332870748,1721607047815,-17647.127028,0.000119,2]
[332872318,1721607700744,3405.0,0.00024,60]
[332872319,1721607700801,4000.0,0.00025,120]
[332872320,1721607915822,157.072209,0.00025,110]
[332872321,1721608026137,603.77,8.76e-05,2]
[332872349,1721608231718,-435.662197,0.00010396,2]
[332872351,1721608231728,-5303.5113,0.00010448,2]
[332872353,1721608231739,-160.0513,0.00010548,2]
[332872354,1721608231749,-1993.1054535,0.00010618,2]
[332872355,1721608231758,-155.0,0.00010618,2]
[332872356,1721608231775,-203.44006433,0.00010618,2]
[332872357,1721608231784,-300.0,0.00010646,2]
[332872358,1721608231793,-150.0,0.00010647,2]
[332872359,1721608231804,-470.91717997,0.00010648,2]
[332872360,1721608231815,-380.08752956,0.00010648,2]
[332872361,1721608231824,-3506.21476622,0.00010648,2]
[332872362,1721608231833,-155.0,0.00010648,2]
[332872363,1721608231842,-155.0,0.00010648,2]
[332872364,1721608231852,-290.99875892,0.00010648,2]
[332872365,1721608231864,-237.19114687,0.00010648,2]
[332872366,1721608231873,-161.93548191,0.00010648,2]
[332872367,1721608231892,-330.99039064,0.00010648,2]
[332872368,1721608231901,-155.75767087,0.00010648,2]
[332872369,1721608231911,-190.39409018,0.00010648,2]
[332872370,1721608231920,-347.09163168,0.00010648,2]
[332872371,1721608231929,-191.65859836,0.00010648,2]
[332872372,1721608231942,-155.26749587,0.00010648,2]
[332872373,1721608231951,-266.95796456,0.00010648,2]
[332872374,1721608231961,-162.74340566,0.00010648,2]
[332872375,1721608231971,-2869.72015585,0.00010648,2]
[332872376,1721608231982,-1298.21952878,0.00010648,2]
[332872377,1721608231992,-197.89000556,0.00010648,2]
[332872378,1721608232004,-524.60604072,0.00010648,2]
[332872379,1721608232013,-1137.47940458,0.00010648,2]
[332872381,1721608232023,-356.93341906,0.00010648,2]
[332872383,1721608232032,-155.0,0.00010648,2]
[332872385,1721608232041,-250.0,0.00010663,2]
[332872387,1721608232051,-217.31,0.00010713,2]
[332872389,1721608232060,-250.0,0.00010809,2]
[332872390,1721608232069,-3169.91,0.00010899,2]
[332872392,1721608232079,-227.49811675,0.000109,2]
[332872395,1721608232088,-227.49811675,0.000109,2]
[332872396,1721608232098,-603.77,0.00011024,2]
[332872398,1721608232108,-1252.8,0.00011086,2]
[332872400,1721608232118,-155.0,0.00011105,2]
[332872402,1721608232127,-218.59114644,0.00011105,2]
[332872404,1721608232136,-170.13,0.00011144,2]
[332872406,1721608232146,-471.4536772,0.00011161,2]
[332872409,1721608232156,-155.0,0.00011161,2]
[332872411,1721608232165,-216.04,0.00011198,2]
[332872413,1721608232174,-1000.0,0.00011392,2]
[332872414,1721608232187,-89.94112842,0.00011441,2]
[332872417,1721608232203,-224.97887158,0.00011441,2]
[332872419,1721608232212,-304.28,0.00011578,2]
[332872421,1721608232222,-150.0,0.00011578,2]
[332872423,1721608232232,-150.0,0.00011578,2]
[332872424,1721608232242,-269.0,0.00011663,2]
[332872425,1721608232251,-278.7451,0.000117,2]
[332872426,1721608232261,-420.0,0.00011703,2]
[332872427,1721608232270,-700.40151519,0.0001178,2]
[332872428,1721608232282,-752.22511481,0.0001178,2]
[332872429,1721608232291,-895.20781516,0.0001179,2]
[332872430,1721608232301,-1000.0,0.00011799,2]
[332872431,1721608232311,-301.568426,0.000118,2]
[332872432,1721608232320,-1713.08517,0.000118,2]
[332872433,1721608232331,-2775.16838693,0.000118,2]
[332872434,1721608232346,-2799.99,0.000118,2]
[332872435,1721608232361,-334.50747262,0.000118,2]
[332872440,1721608237680,-3641.2040372,0.000118,2]
[332872441,1721608237738,-1001.34166902,0.000118,2]
[332872442,1721608237749,-3537.6,0.000118,2]
[332872443,1721608237908,-504.3514221,0.000118,2]
[332872464,1721608239776,-23792.85499929,0.000118,2]
[332872465,1721608239791,-3108.12795836,0.000118,2]
[332872466,1721608239834,-23982.68435448,0.000118,2]
[332872467,1721608239843,-177.42557793,0.000118,2]
[332872468,1721608239854,-1000.0,0.000118,2]
[332872469,1721608239864,-165.18250567,0.000118,2]
[332872470,1721608239873,-30373.98017208,0.000118,2]
[332872471,1721608239885,-324.455523,0.000118,2]
[332872472,1721608239900,-6261.11776499,0.000118,2]
[332872473,1721608240058,-1139.11643078,0.000118,2]
[332872479,1721608242840,-2378.5307728,0.000118,2]
[332872480,1721608243008,-204522.79933635,0.000118,2]
[332872481,1721608243018,-734.39,0.000118,2]
[332872482,1721608243027,-223.21652696,0.000118,2]
[332872483,1721608243036,-1000.0,0.000118,2]
[332872484,1721608243046,-170.39824588,0.000118,2]
[332872485,1721608243055,-1000.0,0.000118,2]
[332872486,1721608243064,-500.0,0.00011805,2]
[332872487,1721608243073,-3733.02,0.0001189,2]
[332872488,1721608243083,-150.0,0.0001189,2]
[332872489,1721608243092,-508.46,0.0001189,2]
[332872490,1721608243101,-150.0,0.0001189,2]
[332872491,1721608243110,-150.0,0.0001189,2]
[332872492,1721608243119,-150.0,0.0001189,2]
[332872493,1721608243129,-153.7,0.0001189,2]
[332872494,1721608243140,-221.38141572,0.00011899,2]
[332872495,1721608243150,-742376.13154938,0.000119,2]
[332872496,1721608245959,-383.92290817,0.00011691,2]
[332872497,1721608245969,-804.42709183,0.0001185,2]
[332872498,1721608245981,-492.0088029,0.0001185,2]
[332872499,1721608245990,-2078.41012978,0.000119,2]
[332872500,1721608246003,-4446.12637997,0.000119,2]
[332872501,1721608246015,-707.92,0.000119,2]
[332872502,1721608246026,-487.94323696,0.000119,2]
[332872503,1721608246101,-797.50638498,0.000119,2]
[332872553,1721608442070,500.0,0.00025,110]
[332872554,1721608608410,565.96,8.91e-05,2]
[332872555,1721608652745,12680.77494575,8.91e-05,2]
[332872556,1721608661857,500.0,0.00025,110]
[332872557,1721609181887,537.66,8.436e-05,2]
[332872582,1721609433568,-945.71295342,0.00010225,2]
[332872583,1721609433584,-14.44935939,0.00010225,2]
[332872584,1721609433603,-215.96997466,0.00010225,2]
[332872585,1721609433620,-54.06110045,0.00010379,2]
[332872586,1721609433638,-331.77046569,0.00010379,2]
[332872587,1721609433678,-580.54868339,0.00010379,2]
[332872588,1721609433696,-679.0,0.00010383,2]
[332872589,1721609433712,-250.0,0.00010417,2]
[332872590,1721609433728,-155.8,0.00010479,2]
[332872591,1721609433742,-1897.27,0.00010484,2]
[332872592,1721609433758,-6168.59,0.00010566,2]
[332872593,1721609433773,-150.0,0.00010603,2]
[332872594,1721609433788,-3203.14,0.00010617,2]
[332872595,1721609433803,-161.99991322,0.00010618,2]
[332872596,1721609433820,-155.64538712,0.00010618,2]
[332872597,1721609433833,-216.06,0.00010636,2]
[332872598,1721609433848,-250.0,0.00010662,2]
[332872599,1721609433863,-882.93,0.00010665,2]
[332872600,1721609433877,-537.66,0.000107,2]
[332872601,1721609433891,-150.0,0.00010701,2]
[332872602,1721609433906,-1619.83276212,0.000108,2]
[332872603,1721609433922,-1000.0,0.00010958,2]
[332872604,1721609433939,-496.19,0.00010959,2]
[332872605,1721609433955,-759.6,0.00010959,2]
[332872606,1721609433969,-808.37,0.00011001,2]
[332872607,1721609433984,-182.94,0.0001107,2]
[332872608,1721609433999,-958.87150947,0.00011105,2]
[332872609,1721609434012,-1073.15860955,0.00011105,2]
[332872610,1721609434026,-1445.92071075,0.00011105,2]
[332872611,1721609434039,-155.0,0.00011105,2]
[332872612,1721609434053,-756.34911449,0.00011186,2]
[332872613,1721609434067,-1000.0,0.000116,2]
[332872614,1721609434081,-150.0,0.00011699,2]
[332872615,1721609434095,-1000.0,0.000117,2]
[332872616,1721609434110,-1690.5098,0.000117,2]
[332872617,1721609434126,-3211.8173,0.000117,2]
[332872618,1721609434139,-2654.6897,0.000117,2]
[332872619,1721609434153,-1000.0,0.000117,2]
[332872620,1721609434168,-1210.52219,0.0001178,2]
[332872621,1721609434182,-194.55896153,0.000118,2]
[332872622,1721609434196,-182.8855422,0.000118,2]
[332872623,1721609434213,-1000.0,0.000118,2]
[332872624,1721609434228,-4209.0323,0.000118,2]
[332872625,1721609434242,-22266.6348,0.000118,2]
[332872626,1721609434256,-363.7067,0.000118,2]
[332872627,1721609434270,-38719.5049,0.000118,2]
[332872628,1721609434285,-1303.5387,0.000118,2]
[332872629,1721609434297,-7500.0,0.000118,2]
[332872630,1721609434311,-970.86080875,0.000118,2]
[332872631,1721609434325,-194.8819109,0.000118,2]
[332872632,1721609434903,-605.03203642,0.000118,2]
[332872633,1721609434956,-500.0,0.00011805,2]
[332872634,1721609434986,-2761.71701088,0.00011887,6]
[332872635,1721609435002,-653.10534714,0.0001189,2]
[332872636,1721609435011,-155.0,0.00011896,2]
[332872637,1721609435021,-528819.45548046,0.000119,2]
[332872638,1721609435054,-9299.18366164,0.000119,2]
[332872639,1721609435066,-727143.69674537,0.000119,2]
[332872640,1721609435077,-21764.73167455,0.000119,2]
[332872641,1721609435088,-66867.49001581,0.000119,2]
[332872642,1721609435104,-13674.6,0.000119,2]
[332872658,1721609437915,-690.66914253,0.000118,2]
[332872659,1721609437927,-309.33085747,0.000118,2]
[332872660,1721609437938,-333.5464,0.000118,2]
[332872661,1721609437948,-155.0,0.0001185,2]
[332872662,1721609437957,-207.12443253,0.000119,2]
[332872663,1721609437968,-582.10308611,0.000119,2]
[332872664,1721609437979,-29044.86442533,0.000119,2]
[332872665,1721609438030,-19688.53596414,0.000119,2]
[332872666,1721609438089,-1437.652988,0.000119,2]
[332872667,1721609438100,-68373.00000001,0.000119,2]
[332872713,1721609439889,-2279.90282078,0.000119,2]
[332872714,1721609439901,-11990.61,0.000119,2]
[332872715,1721609439911,-679.95948349,0.000119,2]
[332872716,1721609440065,-2896.5181005,0.000119,2]
[332872717,1721609440076,-16040.5,0.000119,2]
[332872718,1721609440098,-10.42283408,0.000119,2]
[332872719,1721609440177,-1608.52092669,0.000119,2]
[332872720,1721609440188,-1829.78079802,0.000119,2]
[332872894,1721609443031,-6318.80328979,0.00011649,2]
[332872895,1721609443042,-5586.22671021,0.00011649,2]
[332872896,1721609443052,-7915.47636647,0.000119,2]
[332872897,1721609443063,-418.91555395,0.000119,2]
[332872898,1721609443074,-1778680.97238548,0.000119,2]
[332872899,1721609443253,-10071.71998056,0.000119,2]
[332872915,1721609445995,-3500.49700005,0.000119,2]
[332872916,1721609446048,-13682.7831512,0.000119,2]
[332872917,1721609446108,-2729.20574657,0.000119,2]
[332872918,1721609446119,-2482.465,0.000119,2]
[332872919,1721609446134,-1064.73000001,0.000119,2]
[332872920,1721609446277,-341.935,0.000119,2]
[332872921,1721609446336,-2711.96,0.000119,2]
[332872925,1721609837941,505.23,8.694e-05,2]
[332872926,1721610478963,479.96,8.504e-05,2]
[332872949,1721610632054,-275.77673255,0.00010308,2]
[332872950,1721610632064,-169.56146874,0.00010313,2]
[332872951,1721610632075,-1235.29,0.00010318,2]
[332872952,1721610632085,-194.3667123,0.0001035,2]
[332872953,1721610632095,-250.0,0.00010387,2]
[332872954,1721610632104,-182.95,0.00010413,2]
[332872955,1721610632114,-250.0,0.00010444,2]
[332872956,1721610632551,-755.89,0.00010451,2]
[332872957,1721610632560,-300.0,0.00010484,2]
[332872958,1721610632570,-4595.16515641,0.00010485,2]
[332872963,1721610632613,-481.13236969,0.00010485,2]
[332872965,1721610632624,-520.90383115,0.00010485,2]
[332872967,1721610632636,-256.269,0.00010485,2]
[332872969,1721610632648,-1405.21514294,0.00010485,2]
[332872972,1721610632663,-804.43551989,0.00010485,2]
[332872974,1721610632675,-500.0,0.00010485,2]
[332872976,1721610632687,-327.39805379,0.00010485,2]
[332872979,1721610632703,-2657.52988871,0.00010485,2]
[332873034,1721610638177,-456.92103742,0.00010485,2]
[332873035,1721610638187,-448.91,0.00010495,2]
[332873039,1721610638534,-210.29076918,0.00010538,2]
[332873042,1721610638557,-155.16828948,0.00010538,2]
[332873044,1721610638567,-161.54383301,0.00010538,2]
[332873047,1721610638579,-380.67123651,0.00010538,2]
[332873049,1721610638588,-521.74362309,0.00010538,2]
[332873051,1721610638597,-479.16608278,0.00010538,2]
[332873053,1721610638607,-155.0,0.00010538,2]
[332873055,1721610638616,-980.046542,0.00010538,2]
[332873057,1721610638626,-155.55932747,0.00010538,2]
[332873059,1721610638635,-155.0,0.00010538,2]
[332873061,1721610638644,-1000.0,0.00010569,2]
[332873063,1721610638654,-499.99,0.00010595,2]
[332873065,1721610638663,-171.92,0.00010628,2]
[332873067,1721610638673,-253.64,0.00010691,2]
[332873069,1721610638682,-479.96,0.00010768,2]
[332873071,1721610638691,-400.0,0.000109,3]
[332873073,1721610638700,-150.0,0.00010959,2]
[332873075,1721610638709,-800.0,0.00011,4]
[332873077,1721610638719,-1300.0,0.000111,4]
[332873079,1721610638728,-150.0,0.00011104,2]
[332873081,1721610638737,-380.99266018,0.00011105,2]
[332873083,1721610638749,-3018.72170569,0.00011105,2]
[332873085,1721610638758,-265.08570858,0.00011105,2]
[332873087,1721610638767,-818.2220525,0.00011186,2]
[332873089,1721610638779,-865.69,0.00011186,2]
[332873092,1721610638797,-720.7119,0.00011186,2]
[332873094,1721610638809,-22884.46533037,0.00011186,2]
[332873096,1721610638819,-1700.0,0.000112,4]
[332873098,1721610638828,-2100.0,0.000113,4]
[332873100,1721610638838,-1267.24320587,0.00011322,2]
[332873103,1721610638848,-400.0,0.000114,4]
[332873105,1721610638857,-400.0,0.000115,4]
[332873107,1721610638866,-420.0,0.00011527,2]
[332873109,1721610638876,-160.41,0.00011599,2]
[332873111,1721610638885,-91.66636517,0.000116,4]
[332873114,1721610638906,-308.33363483,0.000116,4]
[332873116,1721610638916,-1000.0,0.000116,2]
[332873118,1721610638926,-160.41,0.00011609,2]
[332873120,1721610638935,-160.41,0.00011618,2]
[332873122,1721610638944,-160.41,0.00011628,2]
[332873124,1721610638954,-160.41,0.00011638,2]
[332873126,1721610638963,-160.41,0.00011647,2]
[332873128,1721610638973,-160.41,0.00011657,2]
[332873130,1721610638982,-400.0,0.000117,4]
[332873132,1721610638991,-498.0,0.00011781,2]
[332873134,1721610639000,-85.05106517,0.00011793,2]
[332873261,1721610640168,-116.55883483,0.00011793,2]
[332873263,1721610640178,-190.9388,0.00011793,2]
[332873265,1721610640188,-1000.0,0.000118,2]
[332873267,1721610640198,-187.05307562,0.000118,2]
[332873270,1721610640208,-6644.6811,0.000118,2]
[332873272,1721610640217,-194.3667123,0.000118,2]
[332873274,1721610640227,-1000.0,0.000118,2]
[332873276,1721610640238,-886.0,0.000118,4]
[332873278,1721610640248,-1132.8973,0.000118,2]
[332873280,1721610640257,-220.24,0.00011808,3]
[332873282,1721610640267,-520.2621,0.0001184,2]
[332873284,1721610640276,-756.49733827,0.0001185,2]
[332873286,1721610640286,-1000.0,0.0001189,2]
[332873288,1721610640296,-112683.647952,0.00011893,2]
[332873290,1721610640306,-3268.35440378,0.000119,2]
[332873305,1721610640443,-664.19327128,0.000119,2]
[332873315,1721610640527,-443.0,0.000119,2]
[332873317,1721610640543,-66160.52853974,0.000119,2]
[332873319,1721610640555,-17343.68528114,0.000119,2]
[332873335,1721610640693,-490.39151482,0.000119,2]
[332873589,1721610643261,-7719.15030239,0.000119,2]
[332873612,1721610643469,-335.22778803,0.000119,2]
[332874124,1721610648891,-473.89259586,0.000119,2]
[332874127,1721610648903,-1592.51588198,0.000119,2]
[332874129,1721610648921,-422.91126348,0.000119,2]
[332874132,1721610648935,-525.15754838,0.000119,2]
[332874134,1721610648947,-7200.81836279,0.000119,2]
[332874136,1721610648958,-684.42,0.000119,2]
[332874139,1721610648984,-403.35469094,0.000118,2]
[332874142,1721610648994,-19871.18387122,0.000119,2]
[332874144,1721610649006,-22519.49385085,0.000119,2]
[332874146,1721610649018,-13349.57390059,0.000119,2]
[332874149,1721610649045,-5283.36552483,0.000119,2]
[332874152,1721610649058,-41978.73152956,0.000119,2]
[332874420,1721610741059,201.0,0.00024,60]
[332874422,1721611156696,454.34,8.884e-05,2]
[332874424,1721611386218,-5900.0,0.00013,30]
[332874430,1721611787120,2980.19153738,0.00025,120]
[332874431,1721611822894,2976.0,0.00025,120]
[332874432,1721611832078,431.62,8.713e-05,2]
[332874435,1721611832344,-963.57398992,0.00010308,2]
[332874436,1721611832354,-600.0,0.00010632,2]
[332874437,1721611832364,-300.0,0.00010672,2]
[332874438,1721611832374,-15384.08801008,0.00010673,2]
[332874439,1721611834137,-1856.94198992,0.00010673,2]
[332874440,1721611834147,-400.0,0.00010712,2]
[332874441,1721611834157,-250.0,0.00010715,2]
[332874442,1721611834167,-202.91,0.00010728,2]
[332874443,1721611834180,-413.9645047,0.00010768,2]
[332874444,1721611834190,-1255.4686182,0.00010768,2]
[332874445,1721611834200,-203.11980475,0.00010768,2]
[332874446,1721611834210,-194.3667123,0.00010818,2]
[332874447,1721611834220,-820.83,0.00010959,2]
[332874448,1721611834229,-431.62,0.00010977,2]
[332874449,1721611834239,-171.92,0.00010982,2]
[332874450,1721611834250,-218.29,0.00011098,2]
[332874451,1721611834259,-161.39021817,0.00011105,2]
[332874452,1721611834269,-155.0,0.00011105,2]
[332874453,1721611834279,-1136.88112604,0.00011105,2]
[332874454,1721611834289,-299.99,0.00011105,2]
[332874455,1721611834299,-155.0,0.00011105,2]
[332874456,1721611834308,-492.92587255,0.00011105,2]
[332874457,1721611834317,-1296.43589473,0.00011105,2]
[332874458,1721611834327,-266.95796456,0.00011105,2]
[332874459,1721611834336,-5611.12090672,0.00011105,2]
[332874460,1721611834345,-2904.52280281,0.00011205,2]
[332874461,1721611834357,-1565.959704,0.00011205,2]
[332874462,1721611834367,-722.49604628,0.00011206,2]
[332874463,1721611834376,-1535.0,0.00011317,2]
[332874464,1721611834385,-174.67353873,0.00011384,2]
[332874465,1721611834394,-158.77431514,0.00011384,2]
[332874466,1721611834404,-1000.0,0.000116,2]
[332874467,1721611834413,-259.344,0.00011693,2]
[332874468,1721611834426,-15389.3223,0.000117,2]
[332874469,1721611834436,-1254.7553,0.000117,2]
[332874470,1721611834446,-1000.0,0.000117,2]
[332874471,1721611834455,-2500.0,0.000117,2]
[332874472,1721611834464,-420.0,0.00011731,2]
[332874473,1721611834474,-23647.9748,0.00011793,2]
[332874474,1721611834483,-68703.37536434,0.00011793,2]
[332874475,1721611834525,-976.03245698,0.00011793,2]
[332874476,1721611834536,-539.12992939,0.00011793,2]
[332874477,1721611834547,-25823.15240094,0.00011793,2]
[332874478,1721611834558,-1015.84930552,0.00011793,2]
[332874479,1721611834569,-420.34730976,0.00011793,2]
[332874480,1721611834616,-345.5,0.00011793,2]
[332874481,1721611834628,-1147.32716098,0.00011793,2]
[332874482,1721611838432,-1029.28607209,0.00011793,2]